Workbook

Sheet Dashboard
A1: Total Sent: | D1: 161 | F1: Left process at stage 1: | J1: 81 | L1: Left process at stage 2: | P1: 1 | R1: Exited process: | V1: 53 | X1: Settled: | AA1: 45
A3: Δ from last month: | D3: -149 | F3: Δ from last month: | J3: -54 | L3: Δ from last month: | P3: -1 | R3: Δ from last month: | V3: -43 | X3: Δ from last month: | AA3: 1
A5: Rolling 12 months: | D5: 2192 | F5: Rolling 12 months: | J5: 950 | L5: Rolling 12 months: | P5: 23 | R5: Rolling 12 months: | V5: 811 | X5: Rolling 12 months: | AA5: 440
A7: Left Process Breakdowns - Stage 1:
A9: Reason | H9: This Month | J9: Last Month | L9: Δ
A10: Liability Decision Timeout | H10: 48 | J10: 118 | L10: -70
A11: Other | H11: 33 | J11: 17 | L11: 16
A12: Total | H12: 81 | J12: 135 | L12: -54
A13: Left Process Breakdowns - Stage 2:
A15: Reason | H15: This Month | J15: Last Month | L15: Δ
A16: Interim payment more than £1,000 not agreed: | H16: 0 | J16: 0 | L16: 0
A17: Settlement pack repudiated: | H17: 0 | J17: 1 | L17: -1
A18: Settlement pack timeout: | H18: 1 | J18: 1 | L18: 0
A19: No agreement; Court Proceedings pack: | H19: 0 | J19: 0 | L19: 0
A20: Total | H20: 1 | J20: 2 | L20: -1

Sheet Backing Sheet Data (hidden)
A1: Reporting date | B1: 2021-02-01
A2: Previous month | B2: =EDATE(B1,-1) -> 2021-01-01 | S2: =SUBTOTAL(9,tblRTABackingData[CNFs Sent]) -> 74093 | T2: =SUBTOTAL(9,tblRTABackingData[CNFs left at Stage 1]) -> 31186 | U2: =SUBTOTAL(9,tblRTABackingData[Stage 2 Exit]) -> 961 | V2: =SUBTOTAL(9,tblRTABackingData[Exit process]) -> 31212 | W2: =SUBTOTAL(9,tblRTABackingData[Court Pack]) -> 264 | X2: =SUBTOTAL(9,tblRTABackingData[Settled claims]) -> 4367 | Y2: =SUBTOTAL(9,tblRTABackingData[General Damages]) -> 355458.3552
R3: Period | S3: CNFs Sent | T3: CNFs left at Stage 1 | U3: Stage 2 Exit | V3: Exit process | W3: Court Pack | X3: Settled claims | Y3: General Damages | AA3: Period | AB3: Rolling 12 CNF Sent | AC3: Rolling 12 CNF Left at Stage 1 | AD3: Rolling 12 Stage 2 Exit | AE3: Rolling 12 Exit Process | AF3: Rolling 12 Court Pack | AG3: Rolling 12 Settled Claims | AI3: Period | AJ3: CNFs Sent | AK3: CNFs left at Stage 1 | AL3: Stage 2 Exit | AM3: Exit process | AN3: Court Pack | AO3: Settled claims | AP3: General Damages
A4: Rolling 12 CNFs sent | E4: Average General Damages chart data | I4: Left Process Breakdown | R4: 2013-08-01 | S4: 167 | T4: 1 | U4: 0 | V4: 17 | W4: 0 | X4: 0 | AA4: 2013-08-01 | AI4: 2013-08-01 | AJ4: 167 | AK4: 1 | AL4: 0 | AM4: 17 | AN4: 0 | AO4: 0
R5: 2013-09-01 | S5: 334 | T5: 47 | U5: 0 | V5: 34 | W5: 0 | X5: 0 | AA5: 2013-09-01 | AI5: 2013-09-01 | AJ5: 334 | AK5: 47 | AL5: 0 | AM5: 34 | AN5: 0 | AO5: 0
A6: Period | B6: Rolling 13 Sent | E6: Row Labels | F6: Ave General Damages | I6: This Month LDT | J6: This Month Other Liability | K6: This Month Interim Payment Not Agreed | L6: This Month Repudiated | M6: This Month Timeout | N6: This Month Court Proceedings | R6: 2013-10-01 | S6: 620 | T6: 197 | U6: 0 | V6: 92 | W6: 0 | X6: 0 | AA6: 2013-10-01 | AI6: 2013-10-01 | AJ6: 620 | AK6: 197 | AL6: 0 | AM6: 92 | AN6: 0 | AO6: 0
A7: 2020-03-01 | B7: 4410 | E7: 2020-03-01 | F7: 4002.032608 | I7: 48 | J7: 33 | K7: 0 | L7: 0 | M7: 1 | N7: 0 | R7: 2013-11-01 | S7: 814 | T7: 284 | U7: 0 | V7: 126 | W7: 0 | X7: 0 | AA7: 2013-11-01 | AI7: 2013-11-01 | AJ7: 815 | AK7: 284 | AL7: 0 | AM7: 126 | AN7: 0 | AO7: 0
A8: 2020-04-01 | B8: 4385 | E8: 2020-04-01 | F8: 3777.092826 | R8: 2013-12-01 | S8: 724 | T8: 346 | U8: 2 | V8: 178 | W8: 0 | X8: 3 | Y8: 3309.666666 | AA8: 2013-12-01 | AI8: 2013-12-01 | AJ8: 724 | AK8: 346 | AL8: 2 | AM8: 178 | AN8: 0 | AO8: 3 | AP8: 3309.666666
A9: 2020-05-01 | B9: 4207 | E9: 2020-05-01 | F9: 4429.057142 | I9: CNF Sent Monthly Volumes Chart Data | R9: 2014-01-01 | S9: 1071 | T9: 507 | U9: 1 | V9: 268 | W9: 0 | X9: 5 | Y9: 5208 | AA9: 2014-01-01 | AI9: 2014-01-01 | AJ9: 1071 | AK9: 507 | AL9: 1 | AM9: 268 | AN9: 0 | AO9: 5 | AP9: 5208
A10: 2020-06-01 | B10: 4120 | E10: 2020-06-01 | F10: 4034.436326 | R10: 2014-02-01 | S10: 998 | T10: 377 | U10: 3 | V10: 212 | W10: 0 | X10: 21 | Y10: 5377.859047 | AA10: 2014-02-01 | AI10: 2014-02-01 | AJ10: 998 | AK10: 377 | AL10: 3 | AM10: 212 | AN10: 0 | AO10: 21 | AP10: 5377.859047
A11: 2020-07-01 | B11: 3987 | E11: 2020-07-01 | F11: 3732.35 | I11: Sum of ClaimCount | J11: Column Labels | R11: 2014-03-01 | S11: 1249 | T11: 478 | U11: 3 | V11: 374 | W11: 3 | X11: 34 | Y11: 5664.852941 | AA11: 2014-03-01 | AI11: 2014-03-01 | AJ11: 1251 | AK11: 478 | AL11: 3 | AM11: 374 | AN11: 3 | AO11: 34 | AP11: 5664.852941
A12: 2020-08-01 | B12: 3810 | E12: 2020-08-01 | F12: 3850.152272 | I12: Row Labels | J12: RTA | K12: PL | L12: ELD | M12: EL | O12: Grand Total | R12: 2014-04-01 | S12: 1387 | T12: 446 | U12: 5 | V12: 407 | W12: 2 | X12: 32 | Y12: 4801.606875 | AA12: 2014-04-01 | AI12: 2014-04-01 | AJ12: 1388 | AK12: 446 | AL12: 5 | AM12: 407 | AN12: 2 | AO12: 32 | AP12: 4801.606875
A13: 2020-09-01 | B13: 3742 | E13: 2020-09-01 | F13: 4315.789473 | I13: 2020-03-01 | J13: 49232 | K13: 2586 | L13: 192 | M13: 1798 | N13: 3460 | O13: 57268 | R13: 2014-05-01 | S13: 1356 | T13: 545 | U13: 4 | V13: 547 | W13: 4 | X13: 42 | Y13: 5028.22238 | AA13: 2014-05-01 | AI13: 2014-05-01 | AJ13: 1359 | AK13: 545 | AL13: 4 | AM13: 547 | AN13: 4 | AO13: 42 | AP13: 5028.22238
A14: 2020-10-01 | B14: 3625 | E14: 2020-10-01 | F14: 3781.241818 | I14: 2020-04-01 | J14: 24499 | K14: 1703 | L14: 262 | M14: 1215 | N14: 2241 | O14: 29920 | R14: 2014-06-01 | S14: 1351 | T14: 590 | U14: 14 | V14: 589 | W14: 8 | X14: 74 | Y14: 4828.914324 | AA14: 2014-06-01 | AI14: 2014-06-01 | AJ14: 1351 | AK14: 590 | AL14: 14 | AM14: 589 | AN14: 8 | AO14: 74 | AP14: 4828.914324
A15: 2020-11-01 | B15: 3610 | E15: 2020-11-01 | F15: 3507.036486 | I15: 2020-05-01 | J15: 22866 | K15: 1378 | L15: 164 | M15: 902 | N15: 1818 | O15: 27128 | R15: 2014-07-01 | S15: 1726 | T15: 543 | U15: 19 | V15: 651 | W15: 3 | X15: 86 | Y15: 4877.246744 | AA15: 2014-07-01 | AB15: =SUM(S4:S15) -> 11797 | AC15: =SUM(T4:T15) -> 4361 | AD15: 51 | AE15: 3495 | AF15: 20 | AG15: 297 | AI15: 2014-07-01 | AJ15: 1727 | AK15: 543 | AL15: 19 | AM15: 651 | AN15: 3 | AO15: 86 | AP15: 4877.246744
A16: 2020-12-01 | B16: 3616 | E16: 2020-12-01 | F16: 3554.7975 | I16: 2020-06-01 | J16: 32354 | K16: 1658 | L16: 162 | M16: 1064 | N16: 2235 | O16: 37473 | R16: 2014-08-01 | S16: 1302 | T16: 512 | U16: 12 | V16: 654 | W16: 10 | X16: 58 | Y16: 4740.314655 | AA16: 2014-08-01 | AB16: 12932 | AC16: =SUM(T5:T16) -> 4872 | AD16: 63 | AE16: 4132 | AF16: 30 | AG16: 355 | AI16: 2014-08-01 | AJ16: 1303 | AK16: 512 | AL16: 12 | AM16: 654 | AN16: 10 | AO16: 58 | AP16: 4740.314655
A17: 2021-01-01 | B17: 2259 | E17: 2021-01-01 | F17: 3431.67575 | I17: 2020-07-01 | J17: 39916 | K17: 1930 | L17: 199 | M17: 1188 | N17: 2679 | O17: 45912 | R17: 2014-09-01 | S17: 1604 | T17: 559 | U17: 34 | V17: 703 | W17: 10 | X17: 106 | Y17: 4555.839622 | AA17: 2014-09-01 | AB17: 14202 | AC17: =SUM(T6:T17) -> 5384 | AD17: 97 | AE17: 4801 | AF17: 40 | AG17: 461 | AI17: 2014-09-01 | AJ17: 1605 | AK17: 559 | AL17: 34 | AM17: 703 | AN17: 10 | AO17: 106 | AP17: 4555.839622
A18: 2021-02-01 | B18: =VLOOKUP(A18,tblPrevious12[],2,FALSE) -> 2192 | E18: 2021-02-01 | F18: 3844.666666 | I18: 2020-08-01 | J18: 37522 | K18: 1781 | L18: 119 | M18: 1094 | N18: 2425 | O18: 42941 | R18: 2014-10-01 | S18: 1575 | T18: 552 | U18: 34 | V18: 727 | W18: 20 | X18: 106 | Y18: 4804.339622 | AA18: 2014-10-01 | AB18: 15157 | AC18: =SUM(T7:T18) -> 5739 | AD18: 131 | AE18: 5436 | AF18: 60 | AG18: 567 | AI18: 2014-10-01 | AJ18: 1584 | AK18: 552 | AL18: 34 | AM18: 727 | AN18: 20 | AO18: 106 | AP18: 4804.339622
E19: Grand Total | F19: 46260.32887 | I19: 2020-09-01 | J19: 44540 | K19: 2225 | L19: 208 | M19: 1423 | N19: 3218 | O19: 51614 | R19: 2014-11-01 | S19: 1503 | T19: 535 | U19: 31 | V19: 680 | W19: 11 | X19: 83 | Y19: 4192.844939 | AA19: 2014-11-01 | AB19: 15846 | AC19: =SUM(T8:T19) -> 5990 | AD19: 162 | AE19: 5990 | AF19: 71 | AG19: 650 | AI19: 2014-11-01 | AJ19: 1518 | AK19: 535 | AL19: 31 | AM19: 680 | AN19: 11 | AO19: 83 | AP19: 4192.844939
I20: 2020-10-01 | J20: 45389 | K20: 2132 | L20: 188 | M20: 1299 | N20: 3335 | O20: 52343 | R20: 2014-12-01 | S20: 1303 | T20: 559 | U20: 34 | V20: 705 | W20: 10 | X20: 74 | Y20: 4345.077837 | AA20: 2014-12-01 | AB20: 16425 | AC20: =SUM(T9:T20) -> 6203 | AD20: 194 | AE20: 6517 | AF20: 81 | AG20: 721 | AI20: 2014-12-01 | AJ20: 1309 | AK20: 559 | AL20: 34 | AM20: 705 | AN20: 10 | AO20: 74 | AP20: 4345.077837
I21: 2020-11-01 | J21: 41998 | K21: 1747 | L21: 153 | M21: 1138 | N21: 3106 | O21: 48142 | R21: 2015-01-01 | S21: 1799 | T21: 583 | U21: 31 | V21: 698 | W21: 12 | X21: 64 | Y21: 4383.794062 | AA21: 2015-01-01 | AB21: 17153 | AC21: =SUM(T10:T21) -> 6279 | AD21: 224 | AE21: 6947 | AF21: 93 | AG21: 780 | AI21: 2015-01-01 | AJ21: 1811 | AK21: 583 | AL21: 31 | AM21: 698 | AN21: 12 | AO21: 64 | AP21: 4383.794062
B22: =SUBTOTAL(9,B24:B33) -> 34296 | E22: CNF Sent Monthly Volumes | I22: 2020-12-01 | J22: 35772 | K22: 1463 | L22: 139 | M22: 858 | N22: 2306 | O22: 40538 | R22: 2015-02-01 | S22: 2335 | T22: 426 | U22: 28 | V22: 769 | W22: 5 | X22: 70 | Y22: 4623.180142 | AA22: 2015-02-01 | AB22: 18490 | AC22: =SUM(T11:T22) -> 6328 | AD22: 249 | AE22: 7504 | AF22: 98 | AG22: 829 | AI22: 2015-02-01 | AJ22: 2361 | AK22: 426 | AL22: 28 | AM22: 769 | AN22: 5 | AO22: 70 | AP22: 4623.180142
A23: Exit Process Reason | B23: Total | I23: 2021-01-01 | J23: 37685 | K23: 1075 | L23: 245 | M23: 1379 | N23: 2805 | O23: 43189 | R23: 2015-03-01 | S23: 2629 | T23: 841 | U23: 21 | V23: 1143 | W23: 5 | X23: 86 | Y23: 4959.155 | AA23: 2015-03-01 | AB23: 19870 | AC23: =SUM(T12:T23) -> 6691 | AD23: 267 | AE23: 8273 | AF23: 100 | AG23: 881 | AI23: 2015-03-01 | AJ23: 2647 | AK23: 841 | AL23: 21 | AM23: 1143 | AN23: 5 | AO23: 86 | AP23: 4959.155
A24: Claim requires further investigation | B24: 14777 | E24: DatePeriod | F24: ClaimType | G24: ClaimCount | I24: 2021-02-01 | J24: 33533 | K24: 1671 | L24: 161 | M24: 1502 | N24: 1894 | O24: 38761 | R24: 2015-04-01 | S24: 2243 | T24: 860 | U24: 28 | V24: 1182 | W24: 7 | X24: 74 | Y24: 4358.135 | AA24: 2015-04-01 | AB24: 20726 | AC24: =SUM(T13:T24) -> 7105 | AD24: 290 | AE24: 9048 | AF24: 105 | AG24: 923 | AI24: 2015-04-01 | AJ24: 2254 | AK24: 860 | AL24: 28 | AM24: 1182 | AN24: 7 | AO24: 74 | AP24: 4358.135
A25: Other | B25: 9867 | E25: 2019-12-01 | F25: RTA | G25: 39231 | I25: Grand Total | J25: 445306 | K25: 21349 | L25: 2192 | M25: 14860 | N25: 31522 | O25: 515229 | R25: 2015-05-01 | S25: 1840 | T25: 781 | U25: 20 | V25: 988 | W25: 5 | X25: 86 | Y25: 3996.816627 | AA25: 2015-05-01 | AB25: 21210 | AC25: =SUM(T14:T25) -> 7341 | AD25: 306 | AE25: 9489 | AF25: 106 | AG25: 967 | AI25: 2015-05-01 | AJ25: 1849 | AK25: 781 | AL25: 20 | AM25: 988 | AN25: 5 | AO25: 86 | AP25: 3996.816627
A26: Incomplete information provided on CNF | B26: 5486 | E26: 2020-01-01 | F26: RTA | G26: 60003 | R26: 2015-06-01 | S26: 1962 | T26: 999 | U26: 24 | V26: 998 | W26: 4 | X26: 78 | Y26: 4745.808589 | AA26: 2015-06-01 | AB26: 21821 | AC26: =SUM(T15:T26) -> 7750 | AD26: 316 | AE26: 9898 | AF26: 102 | AG26: 971 | AI26: 2015-06-01 | AJ26: 1972 | AK26: 999 | AL26: 24 | AM26: 998 | AN26: 4 | AO26: 78 | AP26: 4745.808589
A27: Duplicated claim | B27: 2721 | E27: 2020-02-01 | F27: RTA | G27: 55459 | R27: 2015-07-01 | S27: 1772 | T27: 877 | U27: 31 | V27: 879 | W27: 10 | X27: 92 | Y27: 4072.280326 | AA27: 2015-07-01 | AB27: 21867 | AC27: =SUM(T16:T27) -> 8084 | AD27: 328 | AE27: 10126 | AF27: 109 | AG27: 977 | AI27: 2015-07-01 | AJ27: 1779 | AK27: 877 | AL27: 31 | AM27: 879 | AN27: 10 | AO27: 92 | AP27: 4072.280326
A28: Withdrawal of claim | B28: 1022 | E28: 2020-03-01 | F28: RTA | G28: 49232 | R28: 2015-08-01 | S28: 1619 | T28: 655 | U28: 26 | V28: 649 | W28: 3 | X28: 74 | Y28: 3784.822432 | AA28: 2015-08-01 | AB28: 22184 | AC28: =SUM(T17:T28) -> 8227 | AD28: 342 | AE28: 10121 | AF28: 102 | AG28: 993 | AI28: 2015-08-01 | AJ28: 1629 | AK28: 655 | AL28: 26 | AM28: 649 | AN28: 3 | AO28: 74 | AP28: 3784.822432
A29: Claim is too complex for process | B29: 166 | E29: 2020-04-01 | F29: RTA | G29: 24499 | R29: 2015-09-01 | S29: 1850 | T29: 705 | U29: 17 | V29: 750 | W29: 7 | X29: 89 | Y29: 3917.263595 | AA29: 2015-09-01 | AB29: 22430 | AC29: =SUM(T18:T29) -> 8373 | AD29: 325 | AE29: 10168 | AF29: 99 | AG29: 976 | AI29: 2015-09-01 | AJ29: 1863 | AK29: 705 | AL29: 17 | AM29: 750 | AN29: 7 | AO29: 89 | AP29: 3917.263595
A30: Value of claim exceeds the upper limit | B30: 115 | E30: 2020-05-01 | F30: RTA | G30: 22866 | R30: 2015-10-01 | S30: 1882 | T30: 716 | U30: 22 | V30: 824 | W30: 8 | X30: 96 | Y30: 4040.405 | AA30: 2015-10-01 | AB30: 22737 | AC30: =SUM(T19:T30) -> 8537 | AD30: 313 | AE30: 10265 | AF30: 87 | AG30: 966 | AI30: 2015-10-01 | AJ30: 1893 | AK30: 716 | AL30: 22 | AM30: 824 | AN30: 8 | AO30: 96 | AP30: 4040.405
A31: Withdrawal of offer | B31: 101 | E31: 2020-06-01 | F31: RTA | G31: 32354 | R31: 2015-11-01 | S31: 1613 | T31: 710 | U31: 22 | V31: 864 | W31: 6 | X31: 119 | Y31: 3995.553613 | AA31: 2015-11-01 | AB31: 22847 | AC31: =SUM(T20:T31) -> 8712 | AD31: 304 | AE31: 10449 | AF31: 82 | AG31: 1002 | AI31: 2015-11-01 | AJ31: 1623 | AK31: 710 | AL31: 22 | AM31: 864 | AN31: 6 | AO31: 119 | AP31: 3995.553613
A32: Value of claim below ú1,000 | B32: 29 | E32: 2020-07-01 | F32: RTA | G32: 39916 | R32: 2015-12-01 | S32: 1385 | T32: 655 | U32: 24 | V32: 668 | W32: 4 | X32: 99 | Y32: 3986.581414 | AA32: 2015-12-01 | AB32: 22929 | AC32: =SUM(T21:T32) -> 8808 | AD32: 294 | AE32: 10412 | AF32: 76 | AG32: 1027 | AI32: 2015-12-01 | AJ32: 1395 | AK32: 655 | AL32: 24 | AM32: 668 | AN32: 4 | AO32: 99 | AP32: 3986.581414
A33: Interim payment for child claimant | B33: 12 | E33: 2020-08-01 | F33: RTA | G33: 37522 | R33: 2016-01-01 | S33: 1362 | T33: 607 | U33: 15 | V33: 657 | W33: 7 | X33: 78 | Y33: 3651.267692 | AA33: 2016-01-01 | AB33: 22492 | AC33: =SUM(T22:T33) -> 8832 | AD33: 278 | AE33: 10371 | AF33: 71 | AG33: 1041 | AI33: 2016-01-01 | AJ33: 1369 | AK33: 607 | AL33: 15 | AM33: 657 | AN33: 7 | AO33: 78 | AP33: 3651.267692
E34: 2020-09-01 | F34: RTA | G34: 44540 | R34: 2016-02-01 | S34: 1215 | T34: 500 | U34: 18 | V34: 563 | W34: 2 | X34: 103 | Y34: 3741.542524 | AA34: 2016-02-01 | AB34: 21372 | AC34: =SUM(T23:T34) -> 8906 | AD34: 268 | AE34: 10165 | AF34: 68 | AG34: 1074 | AI34: 2016-02-01 | AJ34: 1220 | AK34: 500 | AL34: 18 | AM34: 563 | AN34: 2 | AO34: 103 | AP34: 3741.542524
E35: 2020-10-01 | F35: RTA | G35: 45389 | R35: 2016-03-01 | S35: 1090 | T35: 599 | U35: 19 | V35: 570 | W35: 4 | X35: 89 | Y35: 4073.583483 | AA35: 2016-03-01 | AB35: 19833 | AC35: =SUM(T24:T35) -> 8664 | AD35: 266 | AE35: 9592 | AF35: 67 | AG35: 1077 | AI35: 2016-03-01 | AJ35: 1095 | AK35: 599 | AL35: 19 | AM35: 570 | AN35: 4 | AO35: 89 | AP35: 4073.583483
E36: 2020-11-01 | F36: RTA | G36: 41998 | R36: 2016-04-01 | S36: 967 | T36: 458 | U36: 23 | V36: 463 | W36: 3 | X36: 89 | Y36: 3934.267303 | AA36: 2016-04-01 | AB36: 18557 | AC36: =SUM(T25:T36) -> 8262 | AD36: 261 | AE36: 8873 | AF36: 63 | AG36: 1092 | AI36: 2016-04-01 | AJ36: 975 | AK36: 458 | AL36: 23 | AM36: 463 | AN36: 3 | AO36: 89 | AP36: 3934.267303
E37: 2020-12-01 | F37: RTA | G37: 35772 | R37: 2016-05-01 | S37: 850 | T37: 447 | U37: 18 | V37: 358 | W37: 3 | X37: 59 | Y37: 3943.311525 | AA37: 2016-05-01 | AB37: 17567 | AC37: =SUM(T26:T37) -> 7928 | AD37: 259 | AE37: 8243 | AF37: 61 | AG37: 1065 | AI37: 2016-05-01 | AJ37: 859 | AK37: 447 | AL37: 18 | AM37: 358 | AN37: 3 | AO37: 59 | AP37: 3943.311525
E38: 2021-01-01 | F38: RTA | G38: 37685 | R38: 2016-06-01 | S38: 741 | T38: 382 | U38: 23 | V38: 417 | W38: 6 | X38: 80 | Y38: 3885.65225 | AA38: 2016-06-01 | AB38: 16346 | AC38: =SUM(T27:T38) -> 7311 | AD38: 258 | AE38: 7662 | AF38: 63 | AG38: 1067 | AI38: 2016-06-01 | AJ38: 751 | AK38: 382 | AL38: 23 | AM38: 417 | AN38: 6 | AO38: 80 | AP38: 3885.65225
E39: 2021-02-01 | F39: RTA | G39: 33533 | R39: 2016-07-01 | S39: 683 | T39: 324 | U39: 8 | V39: 300 | W39: 3 | X39: 67 | Y39: 3694.562835 | AA39: 2016-07-01 | AB39: 15257 | AC39: =SUM(T28:T39) -> 6758 | AD39: 235 | AE39: 7083 | AF39: 56 | AG39: 1042 | AI39: 2016-07-01 | AJ39: 691 | AK39: 324 | AL39: 8 | AM39: 300 | AN39: 3 | AO39: 67 | AP39: 3694.562835
E40: 2019-12-01 | G40: 1975 | R40: 2016-08-01 | S40: 844 | T40: 267 | U40: 13 | V40: 245 | W40: 2 | X40: 47 | Y40: 3745.858723 | AA40: 2016-08-01 | AB40: 14482 | AC40: =SUM(T29:T40) -> 6370 | AD40: 222 | AE40: 6679 | AF40: 55 | AG40: 1015 | AI40: 2016-08-01 | AJ40: 850 | AK40: 267 | AL40: 13 | AM40: 245 | AN40: 2 | AO40: 47 | AP40: 3745.858723
E41: 2020-01-01 | G41: 3643 | R41: 2016-09-01 | S41: 834 | T41: 370 | U41: 12 | V41: 372 | W41: 3 | X41: 77 | Y41: 3320.116103 | AA41: 2016-09-01 | AB41: 13466 | AC41: =SUM(T30:T41) -> 6035 | AD41: 217 | AE41: 6301 | AF41: 51 | AG41: 1003 | AI41: 2016-09-01 | AJ41: 847 | AK41: 370 | AL41: 12 | AM41: 372 | AN41: 3 | AO41: 77 | AP41: 3320.116103
E42: 2020-02-01 | G42: 3690 | R42: 2016-10-01 | S42: 800 | T42: 359 | U42: 17 | V42: 319 | W42: 2 | X42: 50 | Y42: 3599.0362 | AA42: 2016-10-01 | AB42: 12384 | AC42: =SUM(T31:T42) -> 5678 | AD42: 212 | AE42: 5796 | AF42: 45 | AG42: 957 | AI42: 2016-10-01 | AJ42: 815 | AK42: 359 | AL42: 17 | AM42: 319 | AN42: 2 | AO42: 51 | AP42: 3626.506078
E43: 2020-03-01 | G43: 3460 | R43: 2016-11-01 | S43: 812 | T43: 366 | U43: 24 | V43: 332 | W43: 5 | X43: 63 | Y43: 3561.542063 | AA43: 2016-11-01 | AB43: 11583 | AC43: =SUM(T32:T43) -> 5334 | AD43: 214 | AE43: 5264 | AF43: 44 | AG43: 901 | AI43: 2016-11-01 | AJ43: 853 | AK43: 366 | AL43: 24 | AM43: 332 | AN43: 5 | AO43: 64 | AP43: 3529.330468
E44: 2020-04-01 | G44: 2241 | R44: 2016-12-01 | S44: 594 | T44: 310 | U44: 13 | V44: 312 | W44: 2 | X44: 59 | Y44: 3692.492372 | AA44: 2016-12-01 | AB44: 10792 | AC44: =SUM(T33:T44) -> 4989 | AD44: 203 | AE44: 4908 | AF44: 42 | AG44: 861 | AI44: 2016-12-01 | AJ44: 614 | AK44: 310 | AL44: 13 | AM44: 312 | AN44: 2 | AO44: 59 | AP44: 3692.492372
E45: 2020-05-01 | G45: 1818 | R45: 2017-01-01 | S45: 813 | T45: 328 | U45: 12 | V45: 326 | W45: 1 | X45: 60 | Y45: 3953.8205 | AA45: 2017-01-01 | AB45: 10243 | AC45: =SUM(T34:T45) -> 4710 | AD45: 200 | AE45: 4577 | AF45: 36 | AG45: 843 | AI45: 2017-01-01 | AJ45: 843 | AK45: 328 | AL45: 12 | AM45: 326 | AN45: 1 | AO45: 63 | AP45: 3946.495714
E46: 2020-06-01 | G46: 2235 | R46: 2017-02-01 | S46: 822 | T46: 227 | U46: 18 | V46: 298 | W46: 3 | X46: 58 | Y46: 3840.121551 | AA46: 2017-02-01 | AB46: 9850 | AC46: =SUM(T35:T46) -> 4437 | AD46: 200 | AE46: 4312 | AF46: 37 | AG46: 798 | AI46: 2017-02-01 | AJ46: 855 | AK46: 227 | AL46: 18 | AM46: 298 | AN46: 3 | AO46: 60 | AP46: 3846.284166
E47: 2020-07-01 | G47: 2679 | R47: 2017-03-01 | S47: 904 | T47: 429 | U47: 12 | V47: 477 | W47: 3 | X47: 65 | Y47: 3545.99 | AA47: 2017-03-01 | AB47: =SUM(S36:S47) -> 9664 | AC47: =SUM(T36:T47) -> 4267 | AD47: 193 | AE47: 4219 | AF47: 36 | AG47: 774 | AI47: 2017-03-01 | AJ47: 942 | AK47: 429 | AL47: 12 | AM47: 477 | AN47: 3 | AO47: 68 | AP47: 3503.519852
E48: 2020-08-01 | G48: 2425 | R48: 2017-04-01 | S48: 684 | T48: 271 | U48: 5 | V48: 325 | W48: 0 | X48: 40 | Y48: 3351.445 | AA48: 2017-04-01 | AB48: 9381 | AC48: =SUM(T37:T48) -> 4080 | AD48: 175 | AE48: 4081 | AF48: 33 | AG48: 725 | AI48: 2017-04-01 | AJ48: 700 | AK48: 271 | AL48: 5 | AM48: 325 | AN48: 0 | AO48: 41 | AP48: 3306.287804
E49: 2020-09-01 | G49: 3218 | R49: 2017-05-01 | S49: 760 | T49: 382 | U49: 11 | V49: 371 | W49: 3 | X49: 42 | Y49: 3137.203333 | AA49: 2017-05-01 | AB49: 9291 | AC49: =SUM(T38:T49) -> 4015 | AD49: 168 | AE49: 4094 | AF49: 33 | AG49: 708 | AI49: 2017-05-01 | AJ49: 800 | AK49: 382 | AL49: 11 | AM49: 371 | AN49: 3 | AO49: 44 | AP49: 3207.671363
E50: 2020-10-01 | G50: 3335 | R50: 2017-06-01 | S50: 872 | T50: 348 | U50: 17 | V50: 367 | W50: 1 | X50: 43 | Y50: 3514.505116 | AA50: 2017-06-01 | AB50: 9422 | AC50: =SUM(T39:T50) -> 3981 | AD50: 162 | AE50: 4044 | AF50: 28 | AG50: 671 | AI50: 2017-06-01 | AJ50: 901 | AK50: 348 | AL50: 17 | AM50: 367 | AN50: 1 | AO50: 44 | AP50: 3518.720909
E51: 2020-11-01 | G51: 3106 | R51: 2017-07-01 | S51: 688 | T51: 348 | U51: 7 | V51: 348 | W51: 1 | X51: 38 | Y51: 4191.371842 | AA51: 2017-07-01 | AB51: 9427 | AC51: =SUM(T40:T51) -> 4005 | AD51: 161 | AE51: 4092 | AF51: 26 | AG51: 642 | AI51: 2017-07-01 | AJ51: 718 | AK51: 348 | AL51: 7 | AM51: 348 | AN51: 1 | AO51: 38 | AP51: 4191.371842
E52: 2020-12-01 | G52: 2306 | R52: 2017-08-01 | S52: 721 | T52: 367 | U52: 5 | V52: 306 | W52: 3 | X52: 44 | Y52: 3521.9175 | AA52: 2017-08-01 | AB52: 9304 | AC52: =SUM(T41:T52) -> 4105 | AD52: 153 | AE52: 4153 | AF52: 27 | AG52: 639 | AI52: 2017-08-01 | AJ52: 750 | AK52: 367 | AL52: 5 | AM52: 306 | AN52: 3 | AO52: 45 | AP52: 3454.763777
E53: 2021-01-01 | G53: 2805 | R53: 2017-09-01 | S53: 675 | T53: 322 | U53: 15 | V53: 294 | W53: 2 | X53: 40 | Y53: 4071.3635 | AA53: 2017-09-01 | AB53: 9145 | AC53: =SUM(T42:T53) -> 4057 | AD53: 156 | AE53: 4075 | AF53: 26 | AG53: 602 | AI53: 2017-09-01 | AJ53: 708 | AK53: 322 | AL53: 15 | AM53: 294 | AN53: 2 | AO53: 40 | AP53: 4071.3635
E54: 2021-02-01 | G54: 1894 | R54: 2017-10-01 | S54: 729 | T54: 334 | U54: 5 | V54: 304 | W54: 0 | X54: 33 | Y54: 3973.568181 | AA54: 2017-10-01 | AB54: 9074 | AC54: =SUM(T43:T54) -> 4032 | AD54: 144 | AE54: 4060 | AF54: 24 | AG54: 585 | AI54: 2017-10-01 | AJ54: 756 | AK54: 334 | AL54: 5 | AM54: 304 | AN54: 0 | AO54: 34 | AP54: 3959.639705
E55: 2019-12-01 | F55: EL | G55: 1173 | R55: 2017-11-01 | S55: 644 | T55: 341 | U55: 16 | V55: 314 | W55: 3 | X55: 51 | Y55: 3931.95098 | AA55: 2017-11-01 | AB55: 8906 | AC55: =SUM(T44:T55) -> 4007 | AD55: 136 | AE55: 4042 | AF55: 22 | AG55: 573 | AI55: 2017-11-01 | AJ55: 690 | AK55: 341 | AL55: 16 | AM55: 314 | AN55: 3 | AO55: 55 | AP55: 3900
E56: 2020-01-01 | F56: EL | G56: 2035 | R56: 2017-12-01 | S56: 445 | T56: 276 | U56: 8 | V56: 250 | W56: 4 | X56: 31 | Y56: 3882.059677 | AA56: 2017-12-01 | AB56: 8757 | AC56: =SUM(T45:T56) -> 3973 | AD56: 131 | AE56: 3980 | AF56: 24 | AG56: 545 | AI56: 2017-12-01 | AJ56: 477 | AK56: 276 | AL56: 8 | AM56: 250 | AN56: 4 | AO56: 35 | AP56: 3988.395714
E57: 2020-02-01 | F57: EL | G57: 1973 | R57: 2018-01-01 | S57: 673 | T57: 313 | U57: 7 | V57: 254 | W57: 5 | X57: 45 | Y57: 4318.053111 | AA57: 2018-01-01 | AB57: 8617 | AC57: =SUM(T46:T57) -> 3958 | AD57: 126 | AE57: 3908 | AF57: 28 | AG57: 530 | AI57: 2018-01-01 | AJ57: 716 | AK57: 313 | AL57: 7 | AM57: 254 | AN57: 5 | AO57: 49 | AP57: 4233.616122
E58: 2020-03-01 | F58: EL | G58: 1798 | R58: 2018-02-01 | S58: 640 | T58: 231 | U58: 5 | V58: 231 | W58: 5 | X58: 39 | Y58: 4043.714615 | AA58: 2018-02-01 | AB58: 8435 | AC58: =SUM(T47:T58) -> 3962 | AD58: 113 | AE58: 3841 | AF58: 30 | AG58: 511 | AI58: 2018-02-01 | AJ58: 675 | AK58: 231 | AL58: 5 | AM58: 231 | AN58: 5 | AO58: 40 | AP58: 4047.62175
E59: 2020-04-01 | F59: EL | G59: 1215 | R59: 2018-03-01 | S59: 647 | T59: 325 | U59: 3 | V59: 316 | W59: 4 | X59: 41 | Y59: 4137.458048 | AA59: 2018-03-01 | AB59: 8178 | AC59: =SUM(T48:T59) -> 3858 | AD59: 104 | AE59: 3680 | AF59: 31 | AG59: 487 | AI59: 2018-03-01 | AJ59: 686 | AK59: 325 | AL59: 3 | AM59: 316 | AN59: 4 | AO59: 44 | AP59: 4166.722272
E60: 2020-05-01 | F60: EL | G60: 902 | R60: 2018-04-01 | S60: 501 | T60: 313 | U60: 3 | V60: 252 | W60: 0 | X60: 29 | Y60: 3670.626206 | AA60: 2018-04-01 | AB60: 7995 | AC60: =SUM(T49:T60) -> 3900 | AD60: 102 | AE60: 3607 | AF60: 31 | AG60: 476 | AI60: 2018-04-01 | AJ60: 527 | AK60: 313 | AL60: 3 | AM60: 252 | AN60: 0 | AO60: 31 | AP60: 3611.230967
E61: 2020-06-01 | F61: EL | G61: 1064 | R61: 2018-05-01 | S61: 467 | T61: 266 | U61: 6 | V61: 223 | W61: 1 | X61: 26 | Y61: 3641.29423 | AA61: 2018-05-01 | AB61: 7702 | AC61: =SUM(T50:T61) -> 3784 | AD61: 97 | AE61: 3459 | AF61: 29 | AG61: 460 | AI61: 2018-05-01 | AJ61: 491 | AK61: 266 | AL61: 6 | AM61: 223 | AN61: 1 | AO61: 28 | AP61: 3818.701785
E62: 2020-07-01 | F62: EL | G62: 1188 | R62: 2018-06-01 | S62: 496 | T62: 257 | U62: 8 | V62: 186 | W62: 3 | X62: 43 | Y62: 3560.903953 | AA62: 2018-06-01 | AB62: 7326 | AC62: =SUM(T51:T62) -> 3693 | AD62: 88 | AE62: 3278 | AF62: 31 | AG62: 460 | AI62: 2018-06-01 | AJ62: 518 | AK62: 257 | AL62: 8 | AM62: 186 | AN62: 3 | AO62: 43 | AP62: 3560.903953
E63: 2020-08-01 | F63: EL | G63: 1094 | R63: 2018-07-01 | S63: 457 | T63: 264 | U63: 10 | V63: 199 | W63: 0 | X63: 41 | Y63: 3875.294146 | AA63: 2018-07-01 | AB63: 7095 | AC63: =SUM(T52:T63) -> 3609 | AD63: 91 | AE63: 3129 | AF63: 30 | AG63: 463 | AI63: 2018-07-01 | AJ63: 478 | AK63: 264 | AL63: 10 | AM63: 199 | AN63: 0 | AO63: 41 | AP63: 3875.294146
E64: 2020-09-01 | F64: EL | G64: 1423 | R64: 2018-08-01 | S64: 390 | T64: 242 | U64: 11 | V64: 172 | W64: 1 | X64: 33 | Y64: 4000.580303 | AA64: 2018-08-01 | AB64: 6764 | AC64: =SUM(T53:T64) -> 3484 | AD64: 97 | AE64: 2995 | AF64: 28 | AG64: 452 | AI64: 2018-08-01 | AJ64: 416 | AK64: 242 | AL64: 11 | AM64: 172 | AN64: 1 | AO64: 33 | AP64: 4000.580303
E65: 2020-10-01 | F65: EL | G65: 1299 | R65: 2018-09-01 | S65: 415 | T65: 192 | U65: 1 | V65: 150 | W65: 0 | X65: 29 | Y65: 4220.150344 | AA65: 2018-09-01 | AB65: 6504 | AC65: =SUM(T54:T65) -> 3354 | AD65: 83 | AE65: 2851 | AF65: 26 | AG65: 441 | AI65: 2018-09-01 | AJ65: 429 | AK65: 192 | AL65: 1 | AM65: 150 | AN65: 0 | AO65: 30 | AP65: 4121.145333
E66: 2020-11-01 | F66: EL | G66: 1138 | R66: 2018-10-01 | S66: 494 | T66: 224 | U66: 7 | V66: 196 | W66: 0 | X66: 29 | Y66: 4412.009655 | AA66: 2018-10-01 | AB66: 6269 | AC66: =SUM(T55:T66) -> 3244 | AD66: 85 | AE66: 2743 | AF66: 26 | AG66: 437 | AI66: 2018-10-01 | AJ66: 514 | AK66: 224 | AL66: 7 | AM66: 196 | AN66: 0 | AO66: 30 | AP66: 4481.609333
E67: 2020-12-01 | F67: EL | G67: 858 | R67: 2018-11-01 | S67: 415 | T67: 249 | U67: 6 | V67: 143 | W67: 1 | X67: 24 | Y67: 4158.054166 | AA67: 2018-11-01 | AB67: 6040 | AC67: =SUM(T56:T67) -> 3152 | AD67: 75 | AE67: 2572 | AF67: 24 | AG67: 410 | AI67: 2018-11-01 | AJ67: 435 | AK67: 249 | AL67: 6 | AM67: 143 | AN67: 1 | AO67: 24 | AP67: 4158.054166
E68: 2021-01-01 | F68: EL | G68: 1379 | R68: 2018-12-01 | S68: 283 | T68: 177 | U68: 2 | V68: 135 | W68: 2 | X68: 26 | Y68: 3621.280769 | AA68: 2018-12-01 | AB68: 5878 | AC68: =SUM(T57:T68) -> 3053 | AD68: 69 | AE68: 2457 | AF68: 22 | AG68: 405 | AI68: 2018-12-01 | AJ68: 299 | AK68: 177 | AL68: 2 | AM68: 135 | AN68: 2 | AO68: 27 | AP68: 3616.788888
E69: 2021-02-01 | F69: EL | G69: 1502 | R69: 2019-01-01 | S69: 425 | T69: 207 | U69: 1 | V69: 162 | W69: 1 | X69: 24 | Y69: 3734.385 | AA69: 2019-01-01 | AB69: 5630 | AC69: =SUM(T58:T69) -> 2947 | AD69: 63 | AE69: 2365 | AF69: 18 | AG69: 384 | AI69: 2019-01-01 | AJ69: 439 | AK69: 207 | AL69: 1 | AM69: 162 | AN69: 1 | AO69: 24 | AP69: 3734.385
E70: 2019-12-01 | F70: ELD | G70: 127 | R70: 2019-02-01 | S70: 448 | T70: 150 | U70: 4 | V70: 131 | W70: 0 | X70: 29 | Y70: 4074.730689 | AA70: 2019-02-01 | AB70: 5438 | AC70: =SUM(T59:T70) -> 2866 | AD70: 62 | AE70: 2265 | AF70: 13 | AG70: 374 | AI70: 2019-02-01 | AJ70: 469 | AK70: 150 | AL70: 4 | AM70: 131 | AN70: 0 | AO70: 29 | AP70: 4074.730689
E71: 2020-01-01 | F71: ELD | G71: 218 | R71: 2019-03-01 | S71: 421 | T71: 247 | U71: 4 | V71: 154 | W71: 1 | X71: 27 | Y71: 3960.088888 | AA71: 2019-03-01 | AB71: 5212 | AC71: =SUM(T60:T71) -> 2788 | AD71: 63 | AE71: 2103 | AF71: 10 | AG71: 360 | AI71: 2019-03-01 | AJ71: 444 | AK71: 247 | AL71: 4 | AM71: 154 | AN71: 1 | AO71: 29 | AP71: 3890.427586
E72: 2020-02-01 | F72: ELD | G72: 228 | R72: 2019-04-01 | S72: 384 | T72: 225 | U72: 3 | V72: 153 | W72: 3 | X72: 35 | Y72: 4232.722 | AA72: 2019-04-01 | AB72: 5095 | AC72: =SUM(T61:T72) -> 2700 | AD72: 63 | AE72: 2004 | AF72: 13 | AG72: 366 | AI72: 2019-04-01 | AJ72: 405 | AK72: 225 | AL72: 3 | AM72: 153 | AN72: 3 | AO72: 36 | AP72: 4254.035277
E73: 2020-03-01 | F73: ELD | G73: 192 | R73: 2019-05-01 | S73: 398 | T73: 218 | U73: 5 | V73: 144 | W73: 0 | X73: 29 | Y73: 3990.293103 | AA73: 2019-05-01 | AB73: 5026 | AC73: =SUM(T62:T73) -> 2652 | AD73: 62 | AE73: 1925 | AF73: 12 | AG73: 369 | AI73: 2019-05-01 | AJ73: 418 | AK73: 218 | AL73: 5 | AM73: 144 | AN73: 0 | AO73: 30 | AP73: 3973.95
E74: 2020-04-01 | F74: ELD | G74: 262 | R74: 2019-06-01 | S74: 362 | T74: 214 | U74: 6 | V74: 135 | W74: 2 | X74: 20 | Y74: 4906.823 | AA74: 2019-06-01 | AB74: 4892 | AC74: =SUM(T63:T74) -> 2609 | AD74: 60 | AE74: 1874 | AF74: 11 | AG74: 346 | AI74: 2019-06-01 | AJ74: 373 | AK74: 214 | AL74: 6 | AM74: 135 | AN74: 2 | AO74: 22 | AP74: 4900.111818
E75: 2020-05-01 | F75: ELD | G75: 164 | R75: 2019-07-01 | S75: 401 | T75: 222 | U75: 3 | V75: 130 | W75: 3 | X75: 26 | Y75: 4101.051538 | AA75: 2019-07-01 | AB75: 4836 | AC75: =SUM(T64:T75) -> 2567 | AD75: 53 | AE75: 1805 | AF75: 14 | AG75: 331 | AI75: 2019-07-01 | AJ75: 431 | AK75: 222 | AL75: 3 | AM75: 130 | AN75: 3 | AO75: 27 | AP75: 4078.79037
E76: 2020-06-01 | F76: ELD | G76: 162 | R76: 2019-08-01 | S76: 288 | T76: 206 | U76: 2 | V76: 117 | W76: 0 | X76: 23 | Y76: 4346.600869 | AA76: 2019-08-01 | AB76: 4734 | AC76: =SUM(T65:T76) -> 2531 | AD76: 44 | AE76: 1750 | AF76: 13 | AG76: 321 | AI76: 2019-08-01 | AJ76: 367 | AK76: 206 | AL76: 2 | AM76: 117 | AN76: 0 | AO76: 24 | AP76: 4280.075833
E77: 2020-07-01 | F77: ELD | G77: 199 | R77: 2019-09-01 | S77: 258 | T77: 190 | U77: 5 | V77: 131 | W77: 0 | X77: 26 | Y77: 3973.503846 | AA77: 2019-09-01 | AB77: 4577 | AC77: =SUM(T66:T77) -> 2529 | AD77: 48 | AE77: 1731 | AF77: 13 | AG77: 318 | AI77: 2019-09-01 | AJ77: 385 | AK77: 190 | AL77: 5 | AM77: 134 | AN77: 0 | AO77: 28 | AP77: 4135.575
E78: 2020-08-01 | F78: ELD | G78: 119 | R78: 2019-10-01 | S78: 274 | T78: 110 | U78: 5 | V78: 115 | W78: 1 | X78: 32 | Y78: 4597.53625 | AA78: 2019-10-01 | AB78: 4357 | AC78: =SUM(T67:T78) -> 2415 | AD78: 46 | AE78: 1650 | AF78: 14 | AG78: 321 | AI78: 2019-10-01 | AJ78: 432 | AK78: 174 | AL78: 5 | AM78: 152 | AN78: 1 | AO78: 37 | AP78: 4641.112432
E79: 2020-09-01 | F79: ELD | G79: 208 | R79: 2019-11-01 | S79: 193 | T79: 110 | U79: 2 | V79: 83 | W79: 1 | X79: 27 | Y79: 4348.07074 | AA79: 2019-11-01 | AB79: =SUM(S68:S79) -> 4135 | AC79: =SUM(T68:T79) -> 2276 | AD79: 42 | AE79: 1590 | AF79: 14 | AG79: 324 | AI79: 2019-11-01 | AJ79: 327 | AK79: 171 | AL79: 6 | AM79: 114 | AN79: 1 | AO79: 30 | AP79: 4546.597
E80: 2020-10-01 | F80: ELD | G80: 188 | R80: 2019-12-01 | S80: 163 | T80: 83 | U80: 2 | V80: 63 | W80: 3 | X80: 15 | Y80: 3946.052 | AA80: 2019-12-01 | AB80: 4015 | AC80: =SUM(T69:T80) -> 2182 | AD80: 42 | AE80: 1518 | AF80: 15 | AG80: 313 | AI80: 2019-12-01 | AJ80: 254 | AK80: 144 | AL80: 5 | AM80: 95 | AN80: 4 | AO80: 15 | AP80: 3946.052
E81: 2020-11-01 | F81: ELD | G81: 153 | R81: 2020-01-01 | S81: 218 | T81: 79 | U81: 4 | V81: 85 | W81: 2 | X81: 25 | Y81: 3695.816 | AA81: 2020-01-01 | AB81: 3808 | AC81: =SUM(T70:T81) -> 2054 | AD81: 45 | AE81: 1441 | AF81: 16 | AG81: 314 | AI81: 2020-01-01 | AJ81: 325 | AK81: 132 | AL81: 6 | AM81: 111 | AN81: 2 | AO81: 27 | AP81: 3777.607407
E82: 2020-12-01 | F82: ELD | G82: 139 | R82: 2020-02-01 | S82: 228 | T82: 74 | U82: 1 | V82: 77 | W82: 0 | X82: 27 | Y82: 5273.801111 | AA82: 2020-02-01 | AB82: 3588 | AC82: =SUM(T71:T82) -> 1978 | AD82: 42 | AE82: 1387 | AF82: 16 | AG82: 312 | AI82: 2020-02-01 | AJ82: 364 | AK82: 114 | AL82: 1 | AM82: 97 | AN82: 0 | AO82: 29 | AP82: 5334.22862
E83: 2021-01-01 | F83: ELD | G83: 245 | R83: 2020-03-01 | S83: 192 | T83: 107 | U83: 1 | V83: 77 | W83: 0 | X83: 46 | Y83: 4002.032608 | AA83: 2020-03-01 | AB83: 3359 | AC83: =SUM(T72:T83) -> 1838 | AD83: 39 | AE83: 1310 | AF83: 15 | AG83: 331 | AI83: 2020-03-01 | AJ83: 335 | AK83: 173 | AL83: 4 | AM83: 104 | AN83: 0 | AO83: 48 | AP83: 4100.90625
E84: 2021-02-01 | F84: ELD | G84: 161 | R84: 2020-04-01 | S84: 262 | T84: 85 | U84: 1 | V84: 84 | W84: 1 | X84: 46 | Y84: 3777.092826 | AA84: 2020-04-01 | AB84: 3237 | AC84: =SUM(T73:T84) -> 1698 | AD84: 37 | AE84: 1241 | AF84: 13 | AG84: 342 | AI84: 2020-04-01 | AJ84: 380 | AK84: 141 | AL84: 1 | AM84: 113 | AN84: 2 | AO84: 50 | AP84: 4034.8254
E85: 2019-12-01 | F85: PL | G85: 1578 | R85: 2020-05-01 | S85: 164 | T85: 64 | U85: 3 | V85: 65 | W85: 0 | X85: 35 | Y85: 4429.057142 | AA85: 2020-05-01 | AB85: 3003 | AC85: =SUM(T74:T85) -> 1544 | AD85: 35 | AE85: 1162 | AF85: 13 | AG85: 348 | AI85: 2020-05-01 | AJ85: 230 | AK85: 122 | AL85: 7 | AM85: 92 | AN85: 0 | AO85: 38 | AP85: 4309.436842
E86: 2020-01-01 | F86: PL | G86: 2754 | R86: 2020-06-01 | S86: 162 | T86: 120 | U86: 5 | V86: 77 | W86: 0 | X86: 49 | Y86: 4034.436326 | AA86: 2020-06-01 | AB86: =SUM(S75:S86) -> 2803 | AC86: 1450 | AD86: 34 | AE86: 1104 | AF86: 11 | AG86: 377 | AI86: 2020-06-01 | AJ86: 265 | AK86: 171 | AL86: 5 | AM86: 102 | AN86: 0 | AO86: 51 | AP86: 4113.323137
E87: 2020-02-01 | F87: PL | G87: 2645 | R87: 2020-07-01 | S87: 199 | T87: 69 | U87: 2 | V87: 63 | W87: 1 | X87: 32 | Y87: 3732.35 | AA87: 2020-07-01 | AB87: 2601 | AC87: 1297 | AD87: 33 | AE87: 1037 | AF87: 9 | AG87: 383 | AI87: 2020-07-01 | AJ87: 274 | AK87: 123 | AL87: 2 | AM87: 86 | AN87: 1 | AO87: 33 | AP87: 3784.4
E88: 2020-03-01 | F88: PL | G88: 2586 | R88: 2020-08-01 | S88: 119 | T88: 82 | U88: 1 | V88: 60 | W88: 0 | X88: 22 | Y88: 3850.152272 | AA88: 2020-08-01 | AB88: =SUM(S77:S88) -> 2432 | AC88: 1173 | AD88: 32 | AE88: 980 | AF88: 9 | AG88: 382 | AI88: 2020-08-01 | AJ88: 160 | AK88: 104 | AL88: 1 | AM88: 69 | AN88: 0 | AO88: 20 | AP88: 4155.127
E89: 2020-04-01 | F89: PL | G89: 1703 | R89: 2020-09-01 | S89: 208 | T89: 70 | U89: 2 | V89: 62 | W89: 0 | X89: 19 | Y89: 4315.789473 | AA89: 2020-09-01 | AB89: =SUM(S78:S89) -> 2382 | AC89: 1053 | AD89: 29 | AE89: 911 | AF89: 9 | AG89: 375 | AI89: 2020-09-01 | AJ89: 297 | AK89: 113 | AL89: 2 | AM89: 66 | AN89: 0 | AO89: 21 | AP89: 4429.123809
E90: 2020-05-01 | F90: PL | G90: 1378 | R90: 2020-10-01 | S90: 188 | T90: 68 | U90: 2 | V90: 81 | W90: 0 | X90: 33 | Y90: 3781.241818 | AA90: 2020-10-01 | AB90: =SUM(S79:S90) -> 2296 | AC90: 1011 | AD90: 26 | AE90: 877 | AF90: 8 | AG90: 376 | AI90: 2020-10-01 | AJ90: 309 | AK90: 100 | AL90: 2 | AM90: 104 | AN90: 0 | AO90: 35 | AP90: 4108.028
E91: 2020-06-01 | F91: PL | G91: 1658 | R91: 2020-11-01 | S91: 153 | T91: 79 | U91: 1 | V91: 52 | W91: 0 | X91: 37 | Y91: 3507.036486 | AA91: 2020-11-01 | AB91: =SUM(S80:S91) -> 2256 | AC91: 980 | AD91: 25 | AE91: 846 | AF91: 7 | AG91: 386 | AI91: 2020-11-01 | AJ91: 286 | AK91: 127 | AL91: 1 | AM91: 66 | AN91: 0 | AO91: 32 | AP91: 3741.734375
E92: 2020-07-01 | F92: PL | G92: 1930 | R92: 2020-12-01 | S92: 139 | T92: 64 | U92: 1 | V92: 66 | W92: 0 | X92: 36 | Y92: 3554.7975 | AA92: 2020-12-01 | AB92: =SUM(S81:S92) -> 2232 | AC92: 961 | AD92: 24 | AE92: 849 | AF92: 4 | AG92: 407 | AI92: 2020-12-01 | AJ92: 249 | AK92: 118 | AL92: 3 | AM92: 91 | AN92: 1 | AO92: 38 | AP92: 3454.545
E93: 2020-08-01 | F93: PL | G93: 1781 | R93: 2021-01-01 | S93: 245 | T93: 61 | U93: 1 | V93: 71 | W93: 0 | X93: 40 | Y93: 3431.67575 | AA93: 2021-01-01 | AB93: =SUM(S82:S93) -> 2259 | AC93: 943 | AD93: 21 | AE93: 835 | AF93: 2 | AG93: 422 | AI93: 2021-01-01 | AJ93: 310 | AK93: 135 | AL93: 2 | AM93: 96 | AN93: 0 | AO93: 44 | AP93: 3490.159772
E94: 2020-09-01 | F94: PL | G94: 2225 | R94: 2021-02-01 | S94: 161 | T94: 81 | U94: 1 | V94: 53 | W94: 0 | X94: 45 | Y94: 3844.666666 | AA94: 2021-02-01 | AB94: =SUM(S83:S94) -> 2192 | AC94: =SUM(T83:T94) -> 950 | AD94: =SUM(U83:U94) -> 21 | AE94: =SUM(V83:V94) -> 811 | AF94: =SUM(W83:W94) -> 2 | AG94: =SUM(X83:X94) -> 440
E95: 2020-10-01 | F95: PL | G95: 2132
E96: 2020-11-01 | F96: PL | G96: 1747
E97: 2020-12-01 | F97: PL | G97: 1463
E98: 2021-01-01 | F98: PL | G98: 1075
E99: 2021-02-01 | F99: PL | G99: 1671

Sheet Year Calculations (hidden)
A1: Period | B1: CNFs sent | C1: CNFs left at stage 1 | D1: Stage 2 exit | E1: Exit process | F1: Court pack | G1: Settled claims
A2: 2013-14 | B2: =SUM('Backing Sheet Data'!S4:S15) -> 11797 | C2: =SUM('Backing Sheet Data'!T4:T15) -> 4361 | D2: =SUM('Backing Sheet Data'!U4:U15) -> 51 | E2: =SUM('Backing Sheet Data'!V4:V15) -> 3495 | F2: =SUM('Backing Sheet Data'!W4:W15) -> 20 | G2: =SUM('Backing Sheet Data'!X4:X15) -> 297
A3: 2014-15 | B3: =SUM('Backing Sheet Data'!S16:S27) -> 21867 | C3: =SUM('Backing Sheet Data'!T16:T27) -> 8084 | D3: =SUM('Backing Sheet Data'!U16:U27) -> 328 | E3: =SUM('Backing Sheet Data'!V16:V27) -> 10126 | F3: =SUM('Backing Sheet Data'!W16:W27) -> 109 | G3: =SUM('Backing Sheet Data'!X16:X27) -> 977
A4: 2015-16 | B4: =SUM('Backing Sheet Data'!S28:S39) -> 15257 | C4: =SUM('Backing Sheet Data'!T28:T39) -> 6758 | D4: =SUM('Backing Sheet Data'!U28:U39) -> 235 | E4: =SUM('Backing Sheet Data'!V28:V39) -> 7083 | F4: =SUM('Backing Sheet Data'!W28:W39) -> 56 | G4: =SUM('Backing Sheet Data'!X28:X39) -> 1042
A5: 2016-17 | B5: =SUM('Backing Sheet Data'!S40:S51) -> 9427 | C5: =SUM('Backing Sheet Data'!T40:T51) -> 4005 | D5: =SUM('Backing Sheet Data'!U40:U51) -> 161 | E5: =SUM('Backing Sheet Data'!V40:V51) -> 4092 | F5: =SUM('Backing Sheet Data'!W40:W51) -> 26 | G5: =SUM('Backing Sheet Data'!X40:X51) -> 642
A6: 2017-18 | B6: =SUM('Backing Sheet Data'!S52:S63) -> 7095 | C6: =SUM('Backing Sheet Data'!T52:T63) -> 3609 | D6: =SUM('Backing Sheet Data'!U52:U63) -> 91 | E6: =SUM('Backing Sheet Data'!V52:V63) -> 3129 | F6: =SUM('Backing Sheet Data'!W52:W63) -> 30 | G6: =SUM('Backing Sheet Data'!X52:X63) -> 463
A7: 2018-19 | B7: =SUM('Backing Sheet Data'!S64:S75) -> 4836 | C7: =SUM('Backing Sheet Data'!T64:T75) -> 2567 | D7: =SUM('Backing Sheet Data'!U64:U75) -> 53 | E7: =SUM('Backing Sheet Data'!V64:V75) -> 1805 | F7: =SUM('Backing Sheet Data'!W64:W75) -> 14 | G7: =SUM('Backing Sheet Data'!X64:X75) -> 331
A8: 2019-20 | B8: =SUM('Backing Sheet Data'!S76:S87) -> 2601 | C8: =SUM('Backing Sheet Data'!T76:T87) -> 1297 | D8: =SUM('Backing Sheet Data'!U76:U87) -> 33 | E8: =SUM('Backing Sheet Data'!V76:V87) -> 1037 | F8: =SUM('Backing Sheet Data'!W76:W87) -> 9 | G8: =SUM('Backing Sheet Data'!X76:X87) -> 383
A9: 2020-21 | B9: =SUM('Backing Sheet Data'!S88:S99) -> 1213 | C9: =SUM('Backing Sheet Data'!T88:T99) -> 505 | D9: =SUM('Backing Sheet Data'!U88:U99) -> 9 | E9: =SUM('Backing Sheet Data'!V88:V99) -> 445 | F9: =SUM('Backing Sheet Data'!W88:W99) -> 0 | G9: =SUM('Backing Sheet Data'!X88:X99) -> 232
